[Event "Polish Youth Ekstraliga 2022"]
[Site "Lublin"]
[Date "2022.07.02"]
[Round "8.25"]
[White "Dzida, Kamil"]
[Black "Budzisz, Adrian"]
[Result "0-1"]
[ECO "B92"]
[WhiteElo "2294"]
[BlackElo "2152"]
[Annotator "TA"]
[PlyCount "118"]
[EventDate "2022.06.24"]
[EventType "team-tourn"]
[EventCountry "POL"]
[SourceTitle "playchess.com"]
[Source "ChessBase"]
[SourceQuality "1"]
[TimeControl "40/5400+30:1800+30"]

{[%evp 19,117,0,0,-6,0,-7,26,25,42,35,30,27,64,61,100,-16,20,-20,89,87,143,121,161,147,157,142,138,129,195,169,185,160,202,210,192,50,55,54,45,52,61,56,72,12,17,0,0,0,0,-13,-4,-47,-34,-123,-109,-239,-233,-239,-8,-6,-9,-20,-7,-239,-249,-345,-322,-381,-372,-373,-325,-325,-325,-320,-253,-306,-300,-549,-364,-291,-59,-58,-54,-66,-14,-47,0,0,0,-422,-422,-29978,-29979,-29979,-29980,-29980,-29981,-29990,-29991,-29999]} 1. e4 {[%emt 0:00:01]} c5 {[%emt 0:00:06]} 2. Nf3 {[%emt 0:00:05]} d6 {[%emt 0:00:13]} 3. d4 {[%emt 0:00:11]} cxd4 {[%emt 0:00:03]} 4. Nxd4 {[%emt 0:00:06]} Nf6 {[%emt 0:00:03]} 5. Nc3 {[%emt 0:00:08]} a6 {[%emt 0:00:03]} 6. Be2 {[%emt 0:01:09]} e5 {[%emt 0:00:16]} 7. Nb3 {[%emt 0:02:36]} Be7 {[%emt 0:00:11]} 8. Bg5 {[%emt 0:00:30]} Be6 {[%emt 0:00:38]} 9. Bxf6 {[%emt 0:00:08]} Bxf6 {[%emt 0:00:07]} 10. O-O {[%emt 0:00:16]} O-O {[%emt 0:03:13]} 11. Nd5 {[%emt 0:00:04] B92: Sicilian Najdorf: 6 Be2.} Nd7 {[%emt 0:00:45]} 12. c3 {[%emt 0:00:49]} Bxd5 {[%emt 0:04:44]} 13. Qxd5 {[%emt 0:00:07] White has an edge.} Qc7 {[%emt 0:00:14]} 14. Rfd1 {[%emt 0:00:18]} Be7 {[%emt 0:00:22]} 15. Na5 {[%emt 0:03:42] [#]} Rfd8 $146 {[%emt 0:05:15]} ({Predecessor:} 15... Rab8 16. Nc4 Nf6 17. Qd3 Rfd8 {1-0 (17) Pobelianskaia,M-Istrati,I Tallinn 1997}) 16. Bc4 {[%emt 0:01:56]} (16. Nxb7 $2 Nf6 17. Qb3 Rdb8 $19) 16... Nf6 {[%emt 0:04:25]} 17. Qxf7+ {[%emt 0:00:06]} (17. Qxb7 $16 Qxb7 18. Nxb7) 17... Kh8 $11 {[%emt 0:00:03]} 18. Bd5 {[%emt 0:02:20]} (18. Bd3 $5 {[%cal Ra5c4]}) 18... Qxa5 {[%emt 0:24:45]} (18... Rf8 $11 {keeps the balance.} 19. Qe6 Qxa5 20. Qxe7 Qb6) 19. Qxe7 $16 {[%emt 0:00:05]} Rd7 {[%emt 0:00:10]} ({Black should play} 19... Rab8) 20. Qe6 {[%emt 0:00:42]} Re8 {[%emt 0:01:05]} 21. Qf5 {[%emt 0:02:44]} Rf8 {[%emt 0:05:13]} 22. Bb3 {[%emt 0:00:08]} Qc5 {[%emt 0:07:10]} 23. Qf3 {[%emt 0:03:06]} h5 {[%emt 0:06:58] [#]} (23... Rdd8 $16 {keeps fighting.} 24. Rd2 a5) 24. Rd5 $1 {[%emt 0:01:56][%mdl 512]} Qc6 {[%emt 0:03:55]} (24... Qb6 25. Rd2) 25. Rad1 {[%emt 0:00:27]} Rdd8 {[%emt 0:00:55]} 26. Qf5 {[%emt 0:04:08]} a5 {[%emt 0:04:40]} 27. a4 {[%emt 0:03:42]} Nh7 $1 $14 {[%emt 0:03:28]} 28. Qxh5 {[%emt 0:01:56] Hoping for R1d2.} Qb6 {[%emt 0:00:22][%csl LRb3,LRf2]} 29. Bc4 $1 {[%emt 0:00:11]} Qxf2+ {[%emt 0:03:22]} 30. Kh1 {[%emt 0:00:06]} Qxb2 {[%emt 0:01:33]} 31. Qh3 {[%emt 0:10:25]} (31. Rxa5 $2 Qxc3 32. Bf7 Rxf7 33. Rxe5 Qc2 $19) (31. Rb5 $16 Qc2 32. Rxb7 (32. Bd5 $2 g6 $19) 32... Qxe4 33. Bf7 $1 (33. Bd5 $2 Qxd5 34. Rc7 Qe4 $19)) 31... Qc2 {[%emt 0:01:06]} 32. Qd3 {[%emt 0:03:05]} Qxa4 {[%emt 0:01:49]} 33. Bb5 {[%emt 0:00:11]} Qb3 {[%emt 0:02:04]} 34. Rb1 {[%emt 0:00:56]} Qa3 {[%emt 0:01:13]} 35. Qc2 {[%emt 0:00:45]} Rc8 {[%emt 0:01:46]} 36. Rb3 {[%emt 0:01:10]} (36. Rd3 $1 $15) 36... Rf2 $1 $17 {[%emt 0:00:04][%cal Bf8f2,Bf2c2,Bc2d2][%mdl 32]} 37. Qd1 {[%emt 0:04:34]} (37. Qxf2 $17 Qxb3 38. h3) 37... Qa2 $19 {[%emt 0:02:05]} 38. Rxd6 {[%emt 0:00:07] [#]} Qc2 $2 $40 {[%emt 0:01:06][%mdl 128] Black is up to no good.} (38... g6 $1 $19 39. Rd8+ (39. Rxg6 $2 Rd2 $19) 39... Rxd8 40. Qxd8+ Kg7 41. Qd7+ (41. Qe7+ $2 Rf7 $19) 41... Kh8 42. Qd8+ (42. Qe8+ $2 Rf8 $19) 42... Kg7 43. Qd7+ (43. Qe7+ $2 Rf7 $19) 43... Kh8 44. Qd8+ (44. Qe8+ $2 Rf8 $19)) 39. Qxc2 $11 {[%emt 0:09:33]} Rxc2 {[%emt 0:00:24]} 40. h3 $1 {[%emt 0:00:00]} Nf6 {[%emt 0:00:00]} 41. Bd3 $2 {[%emt 0:01:40]} (41. Re6 $1 $11 {and White has nothing to worry.}) 41... Rd2 $19 {[%emt 0:01:46]} ({And not} 41... R2xc3 42. Rxb7 a4 43. Kh2 $17) 42. Rxb7 {[%emt 0:03:52]} Rxc3 {[%emt 0:00:59]} ({Stronger than} 42... Nxe4 43. Rc6 Rxc6 44. Rb8+ Kh7 45. Bxe4+ Rg6 46. Ra8 $11) 43. Rb8+ {[%emt 0:00:05]} Kh7 {[%emt 0:00:13]} 44. Rbd8 {[%emt 0:00:04]} a4 {[%emt 0:00:43][%cal Ba5a4,Ba4a3][%mdl 32]} 45. Bb5 {[%emt 0:02:02]} Rxd6 {[%emt 0:00:53]} 46. Rxd6 {[%emt 0:00:05][%mdl 4096] Endgame KRB-KRN} a3 {[%emt 0:00:20]} 47. Ra6 {[%emt 0:00:17]} Nxe4 {[%emt 0:00:26]} 48. Bd7 $2 {[%emt 0:01:11]} (48. Kg1) 48... g6 {[%emt 0:00:34]} 49. Be8 {[%emt 0:00:15]} Ng3+ $2 {[%emt 0:01:13]} ({Black should try} 49... Nc5 $19 50. Ra7+ Kh6) 50. Kh2 $1 $15 {[%emt 0:04:23]} g5 {[%emt 0:05:17] White must now prevent ...Ne2.} 51. h4 $1 {[%emt 0:00:34]} g4 {[%emt 0:04:16]} (51... gxh4 $15 52. Kh3 Nf5+ 53. Kg4 Nd4) 52. h5 {[%emt 0:00:05]} Ne2 {[%emt 0:03:42]} (52... e4 $15) 53. Bg6+ $11 {[%emt 0:00:35]} Kh8 {[%emt 0:01:25] And now ...Nf4 would win.} 54. g3 {[%emt 0:02:58][%mdl 8192] Prevents Nf4.} (54. Bf5 $11 {and White is okay.} Nf4 55. Bxg4) 54... Rxg3 $19 {[%emt 0:00:23] ...Rh3+ is the strong threat.} 55. Ra7 {[%emt 0:08:28]} (55. Bf5 $19 Rh3+ 56. Kg2 Nf4+ 57. Kg1 Rg3+ 58. Kh1 Nxh5 59. Kh2) 55... Rh3+ {[%emt 0:04:42] Black mates.} 56. Kg2 {[%emt 0:00:02]} Nf4+ {[%emt 0:00:15]} 57. Kg1 {[%emt 0:00:07]} Rc3 {[%emt 0:03:16]} 58. Be4 {[%emt 0:06:02]} g3 {[%emt 0:00:44][%cal Rc3c1]} 59. h6 {[%emt 0:00:05]} Rc1# {[%emt 0:00:07] Both players deserved the win here.  Weighted Error Value: White=0.62/Black=0.30} 0-1

[Event "Polish Youth Ekstraliga 2022"]
[Site "Lublin"]
[Date "2022.07.02"]
[Round "8.26"]
[White "Backiel, Hubert"]
[Black "Koziorowicz, Michal"]
[Result "1/2-1/2"]
[ECO "B27"]
[WhiteElo "2045"]
[BlackElo "2231"]
[Annotator "TA"]
[PlyCount "74"]
[EventDate "2022.06.24"]
[EventType "team-tourn"]
[EventCountry "POL"]
[SourceTitle "playchess.com"]
[Source "ChessBase"]
[SourceQuality "1"]
[TimeControl "40/5400+30:1800+30"]

{[%evp 14,74,12,16,27,10,18,0,0,0,0,0,0,0,0,0,23,0,0,-58,-62,-62,-46,-62,-55,-56,-50,-43,-45,-45,-39,-61,-25,-27,-3,-7,-8,-8,-7,-9,0,0,0,0,0,0,0,0,0,0,0,0,0,0,0,0,0,0,0,0,0,0,0]} 1. e4 {[%emt 0:00:02]} c5 {[%emt 0:00:20]} 2. Nf3 {[%emt 0:00:05]} g6 {[%emt 0:01:21]} 3. d4 {[%emt 0:00:42]} cxd4 {[%emt 0:00:05]} 4. Qxd4 {[%emt 0:03:45]} Nf6 {[%emt 0:00:16]} 5. Nc3 {[%emt 0:01:03]} Nc6 {[%emt 0:00:07]} 6. Qa4 {[%emt 0:01:22]} d6 {[%emt 0:09:04]} 7. e5 {[%emt 0:01:17]} dxe5 {[%emt 0:00:28]} 8. Nxe5 {[%emt 0:01:35]} Bd7 {[%emt 0:02:38] B27: Sicilian: 2 Nf3, unusual Black 2nd moves.} 9. Nxd7 {[%emt 0:08:01]} Nxd7 {[%emt 0:04:49]} 10. Be3 {[%emt 0:04:30]} Bg7 {[%emt 0:07:45]} 11. Bb5 {[%emt 0:04:53]} O-O {[%emt 0:06:10]} 12. Rd1 {[%emt 0:02:30]} Bxc3+ {[%emt 0:11:41]} 13. bxc3 {[%emt 0:00:15] [#]} Qc8 $146 {[%emt 0:00:16]} ({Predecessor:} 13... Qc7 14. O-O Rfd8 15. Qh4 Nf6 16. Rb1 Nd5 17. Bg5 Nxc3 18. Rb3 Rd4 19. Qh6 Na5 20. Bxe7 Qxe7 21. Rxc3 {0-1 (62) Petri,R (1839)-Held,C (2082) Erfurt 2019}) 14. O-O {[%emt 0:11:31]} Nf6 {[%emt 0:02:25]} 15. Qa3 {[%emt 0:19:46]} Qc7 {[%emt 0:12:58]} 16. Bxc6 {[%emt 0:05:50]} (16. h3 $11) 16... Ng4 $1 $15 {[%emt 0:07:39][%csl Gg4][%cal Rc7h2] [#]} 17. g3 {[%emt 0:01:55] And now Bg2 would win.} Qxc6 {[%emt 0:01:41]} 18. Qxe7 {[%emt 0:08:45]} Rae8 {[%emt 0:03:04]} 19. Qd7 {[%emt 0:01:46]} Nxe3 {[%emt 0:00:25][%csl Ge3][%cal Rc6g2]} 20. Qxc6 {[%emt 0:01:14]} bxc6 {[%emt 0:00:05]} 21. fxe3 {[%emt 0:00:05]} Rxe3 {[%emt 0:00:18][%mdl 4096] Endgame KRR-KRR} 22. Rd3 {[%emt 0:04:10]} Re7 {[%emt 0:00:29]} 23. Rd6 {[%emt 0:06:55]} Rb8 {[%emt 0:02:59]} 24. Rxc6 {[%emt 0:01:25] The position is equal.} Rb2 {[%emt 0:00:06][%csl LRa2,LRc2]} 25. a4 {[%emt 0:00:24]} Ra2 {[%emt 0:07:11]} 26. Rc4 {[%emt 0:00:39]} Kg7 {[%emt 0:02:58]} 27. Rf2 {[%emt 0:00:56]} a5 {[%emt 0:03:06]} 28. Kg2 {[%emt 0:00:43]} f5 {[%emt 0:00:31]} 29. Kf3 {[%emt 0:02:03]} Kf6 {[%emt 0:02:57]} 30. Rd2 {[%emt 0:01:22]} Re6 {[%emt 0:02:23]} 31. h4 {[%emt 0:00:51]} Ra1 {[%emt 0:01:29]} 32. Rd5 {[%emt 0:01:21]} Rae1 {[%emt 0:01:49]} 33. Rxa5 {[%emt 0:02:25]} h6 {[%emt 0:00:59][%cal Bh7h6,Bh6g5,Bg5g4][%mdl 32]} 34. Rac5 {[%emt 0:00:42]} g5 {[%emt 0:00:36]} 35. hxg5+ {[%emt 0:01:14]} hxg5 {[%emt 0:00:13] [#] ( -> ...g4+)} 36. Rc6 {[%emt 0:00:16]} g4+ {[%emt 0:00:12]} 37. Kf2 {[%emt 0:00:06] Black must now prevent Rxe6+.} R1e2+ {[%emt 0:00:03] Weighted Error Value: White=0.07 (flawless) /Black=0.04 (flawless)} 1/2-1/2

[Event "Polish Youth Ekstraliga 2022"]
[Site "Lublin"]
[Date "2022.07.02"]
[Round "8.27"]
[White "Raczek, Krzysztof"]
[Black "Ptaszynski, Szymon"]
[Result "1-0"]
[ECO "A01"]
[WhiteElo "2114"]
[BlackElo "1781"]
[Annotator "RC"]
[PlyCount "119"]
[EventDate "2022.06.24"]
[EventType "team-tourn"]
[EventCountry "POL"]
[SourceTitle "playchess.com"]
[Source "ChessBase"]
[SourceQuality "1"]
[TimeControl "40/5400+30:1800+30"]

1. b3 {[%emt 0:00:03]} d5 {[%emt 0:00:18]} 2. Bb2 {[%emt 0:00:04]} Nf6 {[%emt 0:00:05]} 3. e3 {[%emt 0:00:29]} Bf5 {[%emt 0:03:07]} 4. Nf3 {[%emt 0:01:16]} e6 {[%emt 0:00:26]} 5. c4 c6 {[%emt 0:04:28]} 6. Be2 {[%emt 0:09:24]} h6 {[%emt 0:01:22]} 7. O-O {[%emt 0:00:14]} Nbd7 {[%emt 0:02:40]} 8. Nc3 {[%emt 0:04:17]} Bd6 {[%emt 0:03:38]} 9. Rc1 {[%emt 0:02:20]} O-O {[%emt 0:05:26]} 10. Re1 {[%emt 0:01:06]} a6 {[%emt 0:02:46]} 11. Bf1 {[%emt 0:00:33]} Bh7 {[%emt 0:13:29]} 12. d3 {[%emt 0:12:24]} e5 {[%emt 0:05:41]} 13. cxd5 {[%emt 0:05:20]} cxd5 {[%emt 0:00:59]} 14. e4 {[%emt 0:00:04]} d4 {[%emt 0:03:42]} 15. Nb1 {[%emt 0:00:15]} Qe7 {[%emt 0:11:54]} 16. Re2 {[%emt 0:04:16]} Rfd8 {[%emt 0:05:44]} 17. Rec2 {[%emt 0:01:27]} Nb8 {[%emt 0:05:56]} 18. Nfd2 {[%emt 0:02:22]} Nc6 {[%emt 0:00:34]} 19. a3 {[%emt 0:02:03]} Qe6 {[%emt 0:04:54]} 20. Be2 {[%emt 0:03:13]} Rac8 {[%emt 0:02:28]} 21. b4 {[%emt 0:04:55]} g6 {[%emt 0:06:15]} 22. Rc4 {[%emt 0:04:24]} Nd7 {[%emt 0:01:55]} 23. Nb3 {[%emt 0:07:39]} Nb6 {[%emt 0:02:28]} 24. Nc5 {[%emt 0:00:10]} Bxc5 {[%emt 0:04:50]} 25. Rxc5 {[%emt 0:01:13]} Nd7 {[%emt 0:00:03]} 26. R5c2 {[%emt 0:00:20]} f5 {[%emt 0:01:27]} 27. Nd2 {[%emt 0:01:48]} Nf6 {[%emt 0:00:56]} 28. Bf3 {[%emt 0:02:28]} f4 {[%emt 0:00:53]} 29. Rc4 {[%emt 0:00:53]} Kg7 30. Nb3 {[%emt 0:00:38]} Bg8 {[%emt 0:05:25]} 31. Nc5 {[%emt 0:00:16]} Qe7 {[%emt 0:00:19]} 32. Na4 {[%emt 0:04:40]} g5 {[%emt 0:01:05]} 33. Nb6 {[%emt 0:02:04]} Rc7 {[%emt 0:00:47]} 34. Rc5 {[%emt 0:01:19]} Nd7 {[%emt 0:00:35]} 35. Nd5 {[%emt 0:03:16]} Qd6 {[%emt 0:00:33]} 36. Bg4 {[%emt 0:03:04]} Nf6 {[%emt 0:00:14]} 37. Nxc7 {[%emt 0:00:38]} Qxc7 {[%emt 0:00:07]} 38. a4 {[%emt 0:00:32]} Qf7 {[%emt 0:01:20]} 39. b5 {[%emt 0:00:10]} Ne7 40. Rxe5 {[%emt 0:00:00]} Ng6 {[%emt 0:00:00]} 41. Rec5 {[%emt 0:00:52]} Qa2 {[%emt 0:06:41]} 42. Ba1 {[%emt 0:04:52]} Bb3 {[%emt 0:01:30]} 43. Qe2 {[%emt 0:00:22]} Qxe2 44. Bxe2 {[%emt 0:00:03]} Bxa4 {[%emt 0:03:19]} 45. bxa6 {[%emt 0:00:01]} bxa6 {[%emt 0:00:07]} 46. R5c4 {[%emt 0:01:31]} Bb5 {[%emt 0:01:09]} 47. Rxd4 {[%emt 0:00:30]} Rxd4 {[%emt 0:00:30]} 48. Bxd4 {[%emt 0:00:30]} Kf7 {[%emt 0:00:30]} 49. Rc7+ {[%emt 0:00:30]} Ke6 {[%emt 0:00:30]} 50. Rb7 {[%emt 0:00:30]} Ne5 {[%emt 0:00:30]} 51. Rb6+ {[%emt 0:00:30]} Nc6 {[%emt 0:00:30]} 52. Bxf6 {[%emt 0:00:30]} Kxf6 {[%emt 0:00:30]} 53. d4 {[%emt 0:00:30]} Bxe2 {[%emt 0:00:30]} 54. Rxc6+ {[%emt 0:00:30]} Ke7 55. Rxh6 {[%emt 0:00:00]} Bd3 {[%emt 0:00:23]} 56. f3 {[%emt 0:00:00]} Kd7 {[%emt 0:00:12]} 57. Rg6 {[%emt 0:01:07]} a5 {[%emt 0:00:12]} 58. Rxg5 {[%emt 0:00:04]} a4 {[%emt 0:00:03]} 59. Ra5 {[%emt 0:00:04]} Bc2 {[%emt 0:00:04]} 60. h4 {[%emt 0:00:07]} 1-0

[Event "Polish Youth Ekstraliga 2022"]
[Site "Lublin"]
[Date "2022.07.02"]
[Round "8.28"]
[White "Rekuc, Patryk"]
[Black "Grzebieniowski, Michal"]
[Result "1-0"]
[ECO "A61"]
[WhiteElo "1842"]
[BlackElo "1635"]
[Annotator "NA RC"]
[PlyCount "93"]
[EventDate "2022.06.24"]
[EventType "team-tourn"]
[EventCountry "POL"]
[SourceTitle "playchess.com"]
[Source "ChessBase"]
[SourceQuality "1"]
[TimeControl "40/5400+30:1800+30"]

1. d4 {[%emt 0:00:01]} c5 {[%emt 0:01:30]} 2. d5 {[%emt 0:00:06]} e6 {[%emt 0:00:09]} 3. c4 {[%emt 0:00:15]} exd5 {[%emt 0:00:49]} 4. cxd5 {[%emt 0:00:05]} d6 {[%emt 0:00:04]} 5. Nc3 {[%emt 0:00:11]} Nf6 {[%emt 0:00:06]} 6. Nf3 {[%emt 0:00:46]} g6 {[%emt 0:00:48]} 7. e4 {[%emt 0:00:44]} Bg7 {[%emt 0:00:07]} 8. h3 {[%emt 0:00:04]} O-O {[%emt 0:00:34]} 9. Bd3 {[%emt 0:00:25]} Na6 {[%emt 0:00:15]} 10. O-O {[%emt 0:00:31]} Nc7 {[%emt 0:00:12]} 11. Re1 {[%emt 0:00:58]} Rb8 {[%emt 0:00:41]} 12. a4 {[%emt 0:01:27]} a6 {[%emt 0:01:25]} 13. a5 {[%emt 0:01:30]} Bd7 {[%emt 0:05:52]} 14. Qb3 {[%emt 0:01:44]} Re8 {[%emt 0:01:18]} 15. Bf4 {[%emt 0:00:16]} Bb5 {[%emt 0:01:06]} 16. Bxb5 {[%emt 0:02:08]} axb5 {[%emt 0:00:35]} 17. Nxb5 {[%emt 0:02:55]} Nxe4 {[%emt 0:12:08]} 18. Ra4 {[%emt 0:03:56]} f5 {[%emt 0:04:19]} 19. Raxe4 {[%emt 0:11:20]} Rxe4 {[%emt 0:02:07]} 20. Rxe4 {[%emt 0:02:22]} fxe4 {[%emt 0:00:07]} 21. Nxc7 {[%emt 0:02:34]} Qxc7 {[%emt 0:00:23]} 22. Ng5 {[%emt 0:00:07]} Qxa5 {[%emt 0:10:21]} 23. Bxd6 {[%emt 0:03:24]} Rd8 {[%emt 0:00:40]} 24. Bc7 {[%emt 0:09:13]} Qe1+ {[%emt 0:09:52]} 25. Kh2 {[%emt 0:00:03]} h6 {[%emt 0:00:35]} 26. d6+ {[%emt 0:02:18]} Kh8 {[%emt 0:00:06]} 27. Nf7+ {[%emt 0:00:16]} Kh7 {[%emt 0:00:04]} 28. Bxd8 {[%emt 0:00:28]} Qxf2 {[%emt 0:00:11]} 29. Bh4 {[%emt 0:17:13]} Qxh4 {[%emt 0:01:49]} 30. d7 {[%emt 0:00:06]} Bf6 {[%emt 0:00:36]} 31. Qg3 {[%emt 0:00:10]} e3 {[%emt 0:00:25]} 32. Qxe3 {[%emt 0:00:57]} Kg7 {[%emt 0:01:23]} 33. Nd6 {[%emt 0:03:33]} Bd4 {[%emt 0:14:39]} 34. Qg3 {[%emt 0:07:20]} Qd8 {[%emt 0:05:02]} 35. Ne8+ {[%emt 0:00:39]} Kf7 {[%emt 0:01:45]} 36. Qd6 {[%emt 0:01:05]} Bxb2 {[%emt 0:17:47]} 37. Nc7 {[%emt 0:01:18]} c4 {[%emt 0:02:53]} 38. Qe6+ {[%emt 0:04:32]} Kg7 {[%emt 0:00:22]} 39. Ne8+ {[%emt 0:01:16]} Kf8 {[%emt 0:00:35]} 40. Nd6 {[%emt 0:00:00]} Be5+ {[%emt 0:00:00]} 41. Qxe5 {[%emt 0:00:18]} Qxd7 {[%emt 0:01:00]} 42. Qf6+ {[%emt 0:00:06]} Kg8 {[%emt 0:00:15]} 43. Qxg6+ {[%emt 0:00:05]} Kf8 {[%emt 0:00:09]} 44. Qf6+ {[%emt 0:01:15]} Kg8 {[%emt 0:00:05]} 45. Nf5 {[%emt 0:00:17]} Qc7+ {[%emt 0:00:11]} 46. Kh1 {[%emt 0:00:06]} c3 {[%emt 0:00:17]} 47. Ne7+ {[%emt 0:00:04]} 1-0

[Event "Polish Youth Ekstraliga 2022"]
[Site "Lublin"]
[Date "2022.07.02"]
[Round "8.29"]
[White "Siekanska, Maria"]
[Black "Marcinczyk, Monika"]
[Result "1-0"]
[ECO "E48"]
[WhiteElo "1964"]
[BlackElo "1991"]
[Annotator "NA RC"]
[PlyCount "63"]
[EventDate "2022.06.24"]
[EventType "team-tourn"]
[EventCountry "POL"]
[SourceTitle "playchess.com"]
[Source "ChessBase"]
[SourceQuality "1"]
[TimeControl "40/5400+30:1800+30"]

1. d4 {[%emt 0:00:01]} Nf6 {[%emt 0:00:06]} 2. c4 {[%emt 0:00:05]} e6 {[%emt 0:00:04]} 3. Nc3 {[%emt 0:00:05]} Bb4 {[%emt 0:00:06]} 4. e3 {[%emt 0:00:06]} O-O {[%emt 0:00:06]} 5. Bd3 {[%emt 0:00:04]} d5 {[%emt 0:00:13]} 6. cxd5 {[%emt 0:00:06]} exd5 {[%emt 0:00:11]} 7. Nge2 {[%emt 0:00:05]} Re8 {[%emt 0:01:41]} 8. Bd2 {[%emt 0:00:12]} b6 {[%emt 0:07:23]} 9. Rc1 {[%emt 0:01:14]} Bf8 {[%emt 0:00:30]} 10. O-O {[%emt 0:01:17]} Bb7 {[%emt 0:00:20]} 11. f3 {[%emt 0:04:40]} Nbd7 {[%emt 0:03:22]} 12. Kh1 {[%emt 0:06:22]} c5 13. g4 {[%emt 0:11:44]} Bd6 {[%emt 0:10:54]} 14. g5 {[%emt 0:10:39]} Nh5 {[%emt 0:00:32]} 15. f4 {[%emt 0:00:20]} Nf8 {[%emt 0:07:16]} 16. Qe1 {[%emt 0:08:12]} g6 {[%emt 0:05:23]} 17. Qf2 {[%emt 0:01:55]} f5 {[%emt 0:09:15]} 18. Ng3 {[%emt 0:04:31]} Nxg3+ {[%emt 0:06:41]} 19. hxg3 {[%emt 0:03:49]} a6 {[%emt 0:08:13]} 20. g4 {[%emt 0:08:05]} Qd7 {[%emt 0:09:46]} 21. gxf5 {[%emt 0:01:47]} gxf5 {[%emt 0:00:12]} 22. Qf3 {[%emt 0:02:08]} Qf7 {[%emt 0:07:40]} 23. Qh3 {[%emt 0:03:01]} Bc8 {[%emt 0:00:43]} 24. Ne2 {[%emt 0:01:16]} Ng6 {[%emt 0:04:54]} 25. Ng3 Re4 {[%emt 0:06:17]} 26. Bxe4 {[%emt 0:08:15]} dxe4 {[%emt 0:02:54]} 27. dxc5 {[%emt 0:01:37]} Bxc5 {[%emt 0:01:20]} 28. b4 {[%emt 0:03:23]} Qxa2 {[%emt 0:01:54]} 29. bxc5 {[%emt 0:02:39]} Qxd2 {[%emt 0:00:13]} 30. cxb6 {[%emt 0:00:13]} Qxe3 {[%emt 0:01:14]} 31. Rc7 {[%emt 0:01:58]} Nf8 {[%emt 0:00:33]} 32. b7 {[%emt 0:00:34]} 1-0

[Event "Polish Youth Ekstraliga 2022"]
[Site "Lublin"]
[Date "2022.07.02"]
[Round "8.30"]
[White "Szczotka, Klara"]
[Black "Ziobrowska, Maja"]
[Result "1-0"]
[ECO "C45"]
[WhiteElo "1863"]
[BlackElo "1609"]
[Annotator "NA RC"]
[PlyCount "105"]
[EventDate "2022.06.24"]
[EventType "team-tourn"]
[EventCountry "POL"]
[SourceTitle "playchess.com"]
[Source "ChessBase"]
[SourceQuality "1"]
[TimeControl "40/5400+30:1800+30"]

1. e4 {[%emt 0:00:02]} e5 {[%emt 0:00:04]} 2. Nf3 {[%emt 0:00:04]} Nc6 {[%emt 0:00:05]} 3. d4 {[%emt 0:00:04]} exd4 {[%emt 0:00:06]} 4. Nxd4 {[%emt 0:00:03]} Bc5 {[%emt 0:00:07]} 5. Nb3 {[%emt 0:00:05]} Bb6 {[%emt 0:01:05]} 6. Nc3 {[%emt 0:00:06]} Nf6 {[%emt 0:04:55]} 7. Bg5 {[%emt 0:00:05]} h6 {[%emt 0:01:45]} 8. Bh4 {[%emt 0:00:10]} g5 {[%emt 0:00:35]} 9. Bg3 {[%emt 0:00:18]} d6 {[%emt 0:00:04]} 10. Qd2 {[%emt 0:00:54]} Be6 {[%emt 0:01:19]} 11. Bb5 {[%emt 0:02:26]} Qd7 {[%emt 0:01:20]} 12. O-O-O {[%emt 0:01:11]} O-O-O {[%emt 0:01:38]} 13. Rhe1 {[%emt 0:02:13]} a6 {[%emt 0:03:37]} 14. Ba4 {[%emt 0:04:41]} Bxb3 {[%emt 0:03:15]} 15. Bxb3 {[%emt 0:01:22]} Ba5 {[%emt 0:02:40]} 16. f3 {[%emt 0:03:35]} Rhe8 {[%emt 0:04:36]} 17. h4 {[%emt 0:03:13]} Nh5 {[%emt 0:03:17]} 18. Bf2 {[%emt 0:00:55]} g4 {[%emt 0:14:35]} 19. Qxh6 {[%emt 0:05:29]} Rh8 {[%emt 0:01:05]} 20. Qd2 {[%emt 0:05:47]} Ne5 {[%emt 0:03:12]} 21. f4 {[%emt 0:02:00]} Ng6 {[%emt 0:00:31]} 22. g3 {[%emt 0:00:16]} Nxh4 {[%emt 0:28:12]} 23. gxh4 {[%emt 0:01:25]} g3 {[%emt 0:00:08]} 24. Be3 {[%emt 0:01:24]} Qg4 {[%emt 0:02:42]} 25. Qe2 {[%emt 0:03:49]} Qxh4 {[%emt 0:01:27]} 26. Qf3 {[%emt 0:05:22]} Bxc3 {[%emt 0:07:56]} 27. bxc3 {[%emt 0:00:16]} Qe7 {[%emt 0:00:37]} 28. Bd4 {[%emt 0:04:20]} f6 {[%emt 0:03:27]} 29. Rh1 {[%emt 0:00:44]} Qe8 {[%emt 0:01:57]} 30. Rh4 {[%emt 0:02:23]} Qg6 {[%emt 0:01:05]} 31. Be6+ {[%emt 0:00:29]} Kb8 {[%emt 0:00:09]} 32. Bf5 {[%emt 0:00:04]} Qf7 {[%emt 0:00:40]} 33. Rdh1 {[%emt 0:00:28]} g2 {[%emt 0:02:38]} 34. Qxg2 {[%emt 0:00:20]} Rhg8 {[%emt 0:02:23]} 35. Qh3 {[%emt 0:01:53]} Ng7 {[%emt 0:00:26]} 36. Kd2 {[%emt 0:00:48]} c5 {[%emt 0:00:40]} 37. Bf2 {[%emt 0:02:10]} d5 {[%emt 0:00:46]} 38. e5 {[%emt 0:11:38]} fxe5 {[%emt 0:00:34]} 39. Bh7 {[%emt 0:00:09]} Rgf8 {[%emt 0:01:09]} 40. f5 {[%emt 0:00:00]} d4 {[%emt 0:00:00]} 41. cxd4 {[%emt 0:02:08]} cxd4 {[%emt 0:10:39]} 42. Qd3 {[%emt 0:12:54]} Qxa2 {[%emt 0:01:21]} 43. Bg3 {[%emt 0:00:35]} Qa5+ {[%emt 0:01:05]} 44. Ke2 {[%emt 0:00:38]} Ka8 {[%emt 0:01:30]} 45. Rb1 {[%emt 0:03:39]} Rd5 {[%emt 0:08:20]} 46. f6 {[%emt 0:07:22]} Rxf6 {[%emt 0:02:59]} 47. Be4 {[%emt 0:00:38]} Rd7 {[%emt 0:00:09]} 48. Qc4 {[%emt 0:03:46]} Rf8 {[%emt 0:02:40]} 49. Rh6 {[%emt 0:04:11]} Ka7 {[%emt 0:01:38]} 50. Rhb6 {[%emt 0:00:39]} Rb8 {[%emt 0:00:46]} 51. Qb3 {[%emt 0:00:33]} Ka8 {[%emt 0:06:21]} 52. Be1 {[%emt 0:00:57]} d3+ {[%emt 0:01:09]} 53. cxd3 {[%emt 0:00:07]} 1-0